bitfinex-derivatives/quotes_BNBF0:USTF0_20250111
["timestamp","ask_amount","ask_price","bid_price","bid_amount"]
[1736602352859,1.07620857,696.63,695.73,0.28746783]
[1736602353661,1.07620857,696.6,695.73,0.28746783]
[1736602354360,0.26398023,696.59,695.04,1.29149677]
[1736602354560,0.26398023,696.59,695.06,0.28774494]
[1736602355056,1.07620857,696.6,695.06,0.28774494]
[1736602355463,1.07620857,696.56,695.06,0.28774494]
[1736602356462,1.07620857,696.61,695.06,0.28774494]
[1736602357563,0.73540065,697.22,695.06,0.28774494]
[1736602357564,1.07620857,696.62,695.06,0.28774494]
[1736602358665,1.07620857,696.63,695.06,0.28774494]
[1736602359460,1.07620857,696.65,695.06,0.28774494]
[1736602360065,1.07620857,696.88,695.06,0.28774494]
[1736602360066,1.07620857,696.64,695.06,0.28774494]
[1736602360967,1.07620857,696.63,695.06,0.28774494]
[1736602361867,0.88785829,696.98,695.06,0.28774494]
[1736602361868,1.07620857,696.65,695.06,0.28774494]
[1736602362662,1.07620857,696.67,695.06,0.28774494]
[1736602362862,0.28708408,696.66,695.06,0.28774494]
[1736602367472,0.26402618,696.65,695.06,0.28774494]
[1736602367774,0.28709232,696.64,695.06,0.28774494]
[1736602369970,0.26405215,696.63,695.06,0.28774494]
[1736602370172,0.28710057,696.62,695.06,0.28774494]
[1736602370372,0.26405215,696.61,695.06,0.28774494]
[1736602370773,0.28710881,696.6,695.06,0.28774494]
[1736602371076,0.26405215,696.59,695.06,0.28774494]
[1736602371277,0.28711705,696.58,695.06,0.28774494]
[1736602371977,0.26406578,696.57,695.06,0.28774494]
[1736602372177,0.28711705,696.58,695.06,0.28774494]
[1736602372377,0.26406738,696.57,695.06,0.28774494]
[1736602372873,0.28711705,696.58,695.06,0.28774494]
[1736602373277,0.26406632,696.57,695.06,0.28774494]
[1736602373573,0.28711705,696.58,695.06,0.28774494]
[1736602374074,0.26406731,696.57,695.06,0.28774494]
[1736602374677,0.28711705,696.58,695.06,0.28774494]
[1736602375076,0.26406497,696.57,695.06,0.28774494]
[1736602375675,1.07620857,696.5,695.06,0.28774494]
[1736602375973,0.26406497,696.49,695.06,0.28774494]
[1736602376878,0.26407282,696.48,695.06,0.28774494]
[1736602377177,1.07620857,696.5,695.06,0.28774494]
[1736602377378,0.26407135,696.49,695.06,0.28774494]
[1736602377581,0.26407449,696.48,695.06,0.28774494]
[1736602377776,1.07620857,696.55,695.06,0.28774494]
[1736602377973,0.26407498,696.54,695.06,0.28774494]
[1736602378173,1.07620857,696.55,695.06,0.28774494]
[1736602378478,1.34028128,696.54,695.06,0.28774494]
[1736602378677,0.26407271,696.53,695.06,0.28774494]
[1736602379774,0.26407271,696.52,695.06,0.28774494]
[1736602379977,0.26407271,696.51,695.06,0.28774494]
[1736602380178,0.26407271,696.5,695.06,0.28774494]
[1736602380379,0.26407379,696.49,695.06,0.28774494]
[1736602380577,1.07620857,696.55,695.06,0.28774494]
[1736602380779,0.26406905,696.54,695.06,0.28774494]
[1736602381973,0.26406905,696.53,695.06,0.28774494]
[1736602382172,0.2640611,696.52,695.06,0.28774494]
[1736602382380,0.2640611,696.51,695.06,0.28774494]
[1736602382575,0.2640611,696.5,695.06,0.28774494]
[1736602382776,1.07620857,696.54,695.06,0.28774494]
[1736602382974,0.26406045,696.53,695.06,0.28774494]
[1736602384674,1.34026902,696.53,695.06,0.28774494]
[1736602384878,0.26404882,696.52,695.06,0.28774494]
[1736602385780,1.07620857,696.49,695.06,0.28774494]
[1736602386881,1.07620857,696.5,695.06,0.28774494]
[1736602387081,0.26404633,696.49,695.06,0.28774494]
[1736602387478,1.07620857,696.5,695.06,0.28774494]
[1736602387689,0.26405202,696.49,695.06,0.28774494]
[1736602387881,1.07620857,696.41,695.06,0.28774494]
[1736602388784,1.07620857,696.42,695.06,0.28774494]
[1736602389485,1.07620857,696.41,695.06,0.28774494]
[1736602390481,1.07620857,696.43,695.06,0.28774494]
[1736602391280,0.28711705,696.58,695.06,0.28774494]
[1736602391281,1.07620857,696.45,695.06,0.28774494]
[1736602394083,1.07620857,696.43,695.06,0.28774494]
[1736602394883,1.07620857,696.45,695.06,0.28774494]
[1736602395791,1.07620857,696.47,695.06,0.28774494]
[1736602396684,1.07620857,696.5,695.06,0.28774494]
[1736602397692,1.07620857,696.51,695.06,0.28774494]
[1736602400592,1.07620857,696.46,695.06,0.28774494]
[1736602401691,1.07620857,696.49,695.06,0.28774494]
[1736602402092,1.07135469,696.49,695.06,0.28774494]
[1736602402593,0.28711705,696.58,695.06,0.28774494]
[1736602405393,0.26401414,696.57,695.06,0.28774494]
[1736602406597,0.26401152,696.56,695.06,0.28774494]
[1736602406796,0.26401152,696.55,695.12,1.29149677]
[1736602406995,0.28711705,696.58,695.13,0.28771596]
[1736602407195,0.26400659,696.57,695.13,0.28771596]
[1736602409298,0.28711705,696.58,695.13,0.28771596]
[1736602409299,0.26402757,696.56,695.13,0.28771596]
[1736602409596,0.26402757,696.55,695.13,0.28771596]
[1736602409798,0.26402757,696.54,695.13,0.28771596]
[1736602409993,0.26402757,696.53,695.13,0.28771596]
[1736602410198,0.26402757,696.52,695.13,0.28771596]
[1736602410400,0.26403317,696.51,695.13,0.28771596]
[1736602410595,0.26403317,696.5,695.13,0.28771596]
[1736602410793,0.26403317,696.49,695.13,0.28771596]
[1736602410994,1.07620857,696.57,695.13,0.28771596]
[1736602411203,0.26403591,696.56,695.13,0.28771596]
[1736602412101,0.26403549,696.55,695.13,0.28771596]
[1736602413995,1.34024406,696.55,695.13,0.28771596]
[1736602414301,0.26403549,696.54,695.13,0.28771596]
[1736602414798,0.26403594,696.53,695.13,0.28771596]
[1736602415498,1.34024451,696.53,695.13,0.28771596]
[1736602415701,0.26403594,696.52,695.13,0.28771596]
[1736602417605,0.26404629,696.51,695.13,0.28771596]
[1736602417797,0.26404629,696.5,695.13,0.28771596]
[1736602418103,0.26404629,696.49,695.13,0.28771596]
[1736602418302,0.26404629,696.48,695.13,0.28771596]
[1736602418604,1.07620857,696.51,695.13,0.28771596]
[1736602418804,0.26403823,696.5,695.13,0.28771596]
[1736602419305,0.26403823,696.49,695.13,0.28771596]
[1736602419507,0.26403823,696.48,695.13,0.28771596]
[1736602419805,0.26403823,696.47,695.13,0.28771596]
[1736602420006,1.07620857,696.52,695.13,0.28771596]
[1736602420203,1.07620857,696.51,695.13,0.28771596]
[1736602420504,0.2640408,696.5,695.13,0.28771596]
[1736602422207,0.2640408,696.49,695.13,0.28771596]
[1736602422407,0.2640408,696.48,695.13,0.28771596]
[1736602422608,1.07620857,696.52,695.13,0.28771596]
[1736602422807,0.26404245,696.51,695.13,0.28771596]
[1736602423008,0.26404449,696.5,695.13,0.28771596]
[1736602423303,0.26404449,696.49,695.13,0.28771596]
[1736602423501,0.26404449,696.48,695.13,0.28771596]
[1736602423808,1.07620857,696.51,695.13,0.28771596]
[1736602424002,1.34024878,696.5,695.13,0.28771596]
[1736602424308,0.26404021,696.49,695.13,0.28771596]
[1736602425007,1.34024878,696.49,695.13,0.28771596]
[1736602425204,0.26404021,696.48,695.13,0.28771596]
[1736602425808,0.26404225,696.47,695.13,0.28771596]
[1736602426008,1.07620857,696.5,695.13,0.28771596]
[1736602426209,0.26404171,696.49,695.13,0.28771596]
[1736602426409,0.26404635,696.48,695.13,0.28771596]
[1736602426603,0.26404635,696.47,695.13,0.28771596]
[1736602426804,0.26404635,696.46,695.13,0.28771596]
[1736602427003,1.07620857,696.5,695.13,0.28771596]
[1736602427207,0.26404579,696.49,695.13,0.28771596]
[1736602428311,1.34025436,696.49,695.13,0.28771596]
[1736602428506,0.26406092,696.48,695.13,0.28771596]
[1736602429513,0.26406092,696.47,695.13,0.28771596]
[1736602429812,1.07620857,696.5,695.13,0.28771596]
[1736602430005,0.26405607,696.49,695.13,0.28771596]
[1736602431216,1.07620857,696.47,695.13,0.28771596]
[1736602431513,0.26405676,696.46,695.13,0.28771596]
[1736602431914,1.07620857,696.46,695.13,0.28771596]
[1736602432911,1.07620857,696.5,695.13,0.28771596]
[1736602433115,0.26403949,696.49,695.13,0.28771596]
[1736602433912,0.26403718,696.48,695.13,0.28771596]
[1736602434113,1.07620857,696.51,695.13,0.28771596]
[1736602434416,0.26403809,696.5,695.13,0.28771596]
[1736602435414,1.07620857,696.48,695.13,0.28771596]
[1736602435713,0.26403809,696.47,695.13,0.28771596]
[1736602436011,1.07620857,696.48,695.13,0.28771596]
[1736602436216,0.26404365,696.47,695.13,0.28771596]
[1736602436513,1.07620857,696.5,695.13,0.28771596]
[1736602436815,0.26404365,696.49,695.13,0.28771596]
[1736602437709,1.07620857,696.45,695.13,0.28771596]
[1736602437916,0.26404365,696.44,695.13,0.28771596]
[1736602439316,1.07620857,696.45,695.13,0.28771596]
[1736602439317,0.26404949,696.43,695.13,0.28771596]
[1736602439516,0.26404949,696.42,695.13,0.28771596]
[1736602439809,1.07620857,696.45,695.13,0.28771596]
[1736602440016,0.26405937,696.44,695.13,0.28771596]
[1736602440415,0.26405937,696.43,695.13,0.28771596]
[1736602440710,1.07620857,696.48,695.13,0.28771596]
[1736602440917,0.26405797,696.47,695.13,0.28771596]
[1736602441116,1.07620857,696.48,695.13,0.28771596]
[1736602441409,1.34026733,696.47,695.13,0.28771596]
[1736602441614,0.26405876,696.46,695.13,0.28771596]
[1736602441914,0.26404856,696.45,695.13,0.28771596]
[1736602442115,0.26404856,696.44,695.13,0.28771596]
[1736602442314,0.26404856,696.43,695.13,0.28771596]
[1736602442516,0.26404856,696.42,695.13,0.28771596]
[1736602442814,1.07620857,696.47,695.13,0.28771596]
[1736602443109,0.26405696,696.46,695.13,0.28771596]
[1736602443519,1.07620857,696.45,695.13,0.28771596]
[1736602446114,1.07620857,696.45,695.13,0.28771596]
[1736602446717,0.28711705,696.58,695.13,0.28771596]
[1736602446718,1.07620857,696.49,695.13,0.28771596]
[1736602446919,0.26405481,696.48,695.13,0.28771596]
[1736602447418,1.07620857,696.47,695.13,0.28771596]
[1736602447720,0.26405481,696.46,695.13,0.28771596]
[1736602448616,1.34026338,696.46,695.13,0.28771596]
[1736602448817,0.26405481,696.45,695.13,0.28771596]
[1736602449219,1.07620857,696.46,695.13,0.28771596]
[1736602449417,0.26406356,696.45,695.13,0.28771596]
[1736602449617,1.34027213,696.45,695.13,0.28771596]
[1736602449821,1.07620857,696.45,695.13,0.28771596]
[1736602450221,0.26405496,696.44,695.13,0.28771596]
[1736602450920,1.07620857,696.46,695.13,0.28771596]
[1736602451520,0.28711705,696.58,695.13,0.28771596]
[1736602465124,0.26407147,696.57,695.13,0.28771596]
[1736602465723,0.28711705,696.58,695.13,0.28771596]
[1736602465918,0.26406719,696.57,695.13,0.28771596]
[1736602466524,1.07620857,696.53,695.13,0.28771596]
[1736602466725,0.26406719,696.52,695.13,0.28771596]
[1736602467426,1.07620857,696.42,695.13,0.28771596]
[1736602467622,0.26406719,696.41,695.13,0.28771596]
[1736602468219,1.34027576,696.41,695.13,0.28771596]
[1736602468420,1.07620857,696.41,695.13,0.28771596]
[1736602469231,0.26406469,696.4,695.13,0.28771596]
[1736602469427,1.07620857,696.44,695.13,0.28771596]
[1736602469633,0.26406443,696.43,695.13,0.28771596]
[1736602470636,0.26406617,696.42,695.13,0.28771596]
[1736602470832,0.26406617,696.41,695.13,0.28771596]
[1736602471028,0.26406617,696.4,695.13,0.28771596]
[1736602471229,1.07620857,696.42,695.13,0.28771596]
[1736602471530,0.26406223,696.41,695.13,0.28771596]
[1736602472136,1.07620857,696.4,695.13,0.28771596]
[1736602473435,0.26406858,696.39,695.13,0.28771596]
[1736602473635,1.07620857,696.41,695.13,0.28771596]
[1736602473837,0.26406858,696.4,695.13,0.28771596]
[1736602474037,0.26406841,696.39,695.13,0.28771596]
[1736602474233,1.07620857,696.41,695.13,0.28771596]
[1736602474432,0.28711705,696.58,695.13,0.28771596]
[1736602474433,1.07620857,696.39,695.13,0.28771596]
[1736602475633,1.07620857,696.4,695.13,0.28771596]
[1736602475936,0.2640681,696.39,695.13,0.28771596]
[1736602476738,1.34027667,696.39,695.13,0.28771596]
[1736602477033,0.2640681,696.38,695.13,0.28771596]
[1736602477341,1.07620857,696.39,695.13,0.28771596]
[1736602479245,0.26406864,696.38,695.13,0.28771596]
[1736602479445,1.07620857,696.39,695.13,0.28771596]
[1736602479644,0.2640687,696.38,695.13,0.28771596]
[1736602480146,1.07620857,696.39,695.13,0.28771596]
[1736602480347,1.07620857,696.36,695.13,0.28771596]
[1736602483449,1.07620857,696.37,695.13,0.28771596]
[1736602485049,1.07620857,696.4,695.13,0.28771596]
[1736602487052,0.2640656,696.39,695.13,0.28771596]
[1736602487252,1.07620857,696.41,695.13,0.28771596]
[1736602487555,0.26406636,696.4,695.13,0.28771596]
[1736602487850,1.07620857,696.41,695.13,0.28771596]
[1736602488048,0.26406627,696.4,695.13,0.28771596]
[1736602488550,1.07620857,696.39,695.13,0.28771596]
[1736602490153,1.07620857,696.51,695.13,0.28771596]
[1736602491456,0.28711705,696.58,695.13,0.28771596]
[1736602510272,0.26403763,696.57,695.13,0.28771596]
[1736602512175,0.28711705,696.58,695.13,0.28771596]
[1736602520587,0.26401911,696.57,695.13,0.28771596]
[1736602521188,0.28711705,696.58,695.13,0.28771596]
[1736602536699,1.07285834,696.55,695.13,0.28771596]
[1736602537900,1.07285834,696.57,695.13,0.28771596]
[1736602539301,1.07285834,696.53,695.13,0.28771596]
[1736602539897,0.26408147,696.52,695.13,0.28771596]
[1736602540304,1.07285834,696.49,695.13,0.28771596]
[1736602540600,0.26408147,696.48,695.13,0.28771596]
[1736602541001,0.26408259,696.47,695.13,0.28771596]
[1736602541203,1.07285834,696.36,695.13,0.28771596]
[1736602543298,1.07285834,696.35,695.13,0.28771596]
[1736602544205,1.07285834,696.34,695.13,0.28771596]
[1736602545206,1.07285834,696.36,695.13,0.28771596]
[1736602545908,1.07285834,696.37,695.13,0.28771596]
[1736602546600,1.07285834,696.38,695.13,0.28771596]
[1736602547307,0.26408843,696.37,695.13,0.28771596]
[1736602548506,1.07285834,696.34,695.13,0.28771596]
[1736602548703,0.26408843,696.33,695.13,0.28771596]
[1736602548902,1.07285834,696.34,695.13,0.28771596]
[1736602549102,0.26409613,696.33,695.13,0.28771596]
[1736602549709,1.33695447,696.33,695.13,0.28771596]
[1736602549907,1.07285834,696.33,695.13,0.28771596]
[1736602551007,1.07285834,696.39,695.13,0.28771596]
[1736602551605,1.07285834,696.36,695.13,0.28771596]
[1736602552608,1.07285834,696.35,695.13,0.28771596]
[1736602553005,0.28711705,696.58,695.13,0.28771596]
[1736602553208,0.26410278,696.57,695.13,0.28771596]
[1736602553410,0.2871253,696.56,695.13,0.28771596]
[1736602553711,0.26410278,696.55,695.13,0.28771596]
[1736602554306,1.07298843,696.31,695.13,0.28771596]
[1736602555304,1.07298843,696.28,695.13,0.28771596]
[1736602556110,1.07298843,696.29,695.13,0.28771596]
[1736602560116,1.07298843,696.34,695.13,0.28771596]
[1736602561212,1.07298843,696.29,695.13,0.28771596]
[1736602562117,1.07298843,696.27,695.13,0.28771596]
[1736602563111,1.07298843,696.26,695.13,0.28771596]
[1736602564911,1.07298843,696.25,695.13,0.28771596]
[1736602567015,1.07298843,696.35,695.13,0.28771596]
[1736602568414,1.07298843,696.36,695.13,0.28771596]
[1736602569518,1.07298843,696.33,695.13,0.28771596]
[1736602570320,1.07298843,696.32,695.13,0.28771596]
[1736602571620,1.3371228,696.31,695.13,0.28771596]
[1736602571820,0.26413437,696.3,695.13,0.28771596]
[1736602572522,0.26413569,696.29,695.13,0.28771596]
[1736602572725,1.07298843,696.12,695.13,0.28771596]
[1736602574724,1.07298843,696.14,695.13,0.28771596]
[1736602575425,0.88872909,696.55,695.13,0.28771596]
[1736602575426,1.07298843,696.13,695.13,0.28771596]
[1736602576424,0.88872909,696.55,695.13,0.28771596]
[1736602576425,1.07298843,696.14,695.13,0.28771596]
[1736602578429,1.07298843,696.17,695.13,0.28771596]
[1736602580529,1.07298843,696.16,695.13,0.28771596]
[1736602581631,1.07298843,696.14,695.13,0.28771596]
[1736602583033,1.07298843,696.22,695.13,0.28771596]
[1736602584334,0.88872909,696.55,695.13,0.28771596]
[1736602584335,1.07298843,696.21,695.13,0.28771596]
[1736602586238,1.07298843,696.2,695.13,0.28771596]
[1736602587235,1.07298843,696.24,695.13,0.28771596]
[1736602588434,1.07298843,696.23,695.13,0.28771596]
[1736602589234,1.07298843,696.24,695.13,0.28771596]
[1736602590137,1.07298843,696.17,695.13,0.28771596]
[1736602591237,1.07298843,696.15,695.13,0.28771596]
[1736602592040,1.07298843,696.1,695.13,0.28771596]
[1736602595139,1.07298843,696.09,695.13,0.28771596]
[1736602596250,1.07298843,696.17,695.13,0.28771596]
[1736602596938,1.07298843,696.19,695.13,0.28771596]
[1736602598146,1.07298843,696.18,695.13,0.28771596]
[1736602599944,1.07298843,696.2,695.13,0.28771596]
[1736602601552,1.07298843,696.17,695.13,0.28771596]
[1736602605054,1.07298843,696.14,695.13,0.28771596]
[1736602606754,1.07298843,696.16,695.13,0.28771596]
[1736602607555,1.07298843,696.17,695.13,0.28771596]
[1736602611555,1.07298843,696.24,695.13,0.28771596]
[1736602612454,1.07298843,696.31,695.13,0.28771596]
[1736602613458,1.07298843,696.34,695.13,0.28771596]
[1736602615756,1.07298843,696.33,695.13,0.28771596]
[1736602616360,1.07298843,696.34,695.13,0.28771596]
[1736602617659,1.07298843,696.27,695.13,0.28771596]
[1736602618762,1.07298843,696.25,695.13,0.28771596]
[1736602619560,1.07298843,696.26,695.13,0.28771596]
[1736602620861,1.07298843,696.24,695.13,0.28771596]
[1736602621765,1.07298843,696.22,695.13,0.28771596]
[1736602622763,1.07298843,696.15,695.13,0.28771596]
[1736602623765,1.07298843,696.16,695.13,0.28771596]
[1736602625458,1.07298843,696.14,695.13,0.28771596]
[1736602626060,1.07298843,696.19,695.13,0.28771596]
[1736602627065,1.07298843,696.17,695.13,0.28771596]
[1736602627866,1.07298843,696.15,695.13,0.28771596]
[1736602628867,1.07298843,696.16,695.13,0.28771596]
[1736602632769,0.88923047,696.44,695.13,0.28771596]
[1736602632770,1.07298843,696.14,695.13,0.28771596]
[1736602634369,1.07298843,696.16,695.13,0.28771596]
[1736602635071,1.07298843,696.18,695.13,0.28771596]
[1736602636174,1.07298843,696.22,695.13,0.28771596]
[1736602636971,1.07298843,696.21,695.13,0.28771596]
[1736602639170,1.07298843,696.23,695.13,0.28771596]
[1736602640175,1.07298843,696.24,695.13,0.28771596]
[1736602641272,1.07298843,696.25,695.13,0.28771596]
[1736602641875,0.26418167,696.24,695.13,0.28771596]
[1736602642370,0.28725726,696.24,695.13,0.28771596]
[1736602642577,1.07298843,696.2,695.13,0.28771596]
[1736602643370,1.07298843,696.12,695.13,0.28771596]
[1736602644370,1.07298843,696.13,695.13,0.28771596]
[1736602645373,0.26418503,696.12,695.13,0.28771596]
[1736602645779,1.07298843,696.15,695.13,0.28771596]
[1736602645978,0.26418444,696.14,695.13,0.28771596]
[1736602646380,1.07298843,696.08,695.13,0.28771596]
[1736602646581,1.07298843,696.08,694.46,1.28977451]
[1736602646780,0.26423821,696.07,694.48,0.28798525]
[1736602647379,1.07298843,696.02,694.48,0.28798525]
[1736602648381,1.07298843,696.01,694.48,0.28798525]
[1736602649580,0.28725726,696.24,694.48,0.28798525]
[1736602649581,0.28735632,696.0,694.48,0.28798525]
[1736602659584,0.26431127,695.99,694.48,0.28798525]
[1736602659789,0.28736457,695.98,694.48,0.28798525]
[1736602660189,0.26431277,695.97,694.48,0.28798525]
[1736602660489,0.28737283,695.96,694.48,0.28798525]
[1736602660685,0.26431277,695.95,694.48,0.28798525]
[1736602660992,0.28738109,695.94,694.48,0.28798525]
[1736602661193,0.26431277,695.93,694.48,0.28798525]
[1736602661394,0.5516997,695.92,694.48,0.28798525]
[1736602661592,0.55170383,695.91,694.48,0.28798525]
[1736602661892,0.55170796,695.9,694.48,0.28798525]
[1736602662093,0.55171209,695.89,694.48,0.28798525]
[1736602662292,0.55171622,695.88,694.48,0.28798525]
[1736602662494,0.26431035,695.87,694.48,0.28798525]
[1736602663995,0.26430053,695.86,694.48,0.28798525]
[1736602664191,0.26430053,695.85,694.48,0.28798525]
[1736602664391,0.26430053,695.84,694.48,0.28798525]
[1736602664592,0.28740587,695.88,694.48,0.28798525]
[1736602664896,0.26430165,695.87,694.48,0.28798525]
[1736602666698,0.28740587,695.88,694.48,0.28798525]
[1736602666893,0.26430295,695.87,694.48,0.28798525]
[1736602669500,0.26431923,695.86,694.48,0.28798525]
[1736602669703,0.26431923,695.85,694.48,0.28798525]
[1736602669905,0.26431923,695.84,694.48,0.28798525]
[1736602670204,0.26431923,695.83,694.48,0.28798525]
[1736602670405,0.26431923,695.82,694.48,0.28798525]
[1736602670605,0.26431923,695.81,694.48,0.28798525]
[1736602670903,0.26431923,695.8,694.48,0.28798525]
[1736602671105,0.26431923,695.79,694.48,0.28798525]
[1736602671304,0.26431923,695.78,694.48,0.28798525]
[1736602671604,0.26431923,695.77,694.48,0.28798525]
[1736602671806,0.26431923,695.76,694.48,0.28798525]
[1736602672007,0.26431923,695.75,694.48,0.28798525]
[1736602672306,0.26430652,695.74,694.48,0.28798525]
[1736602672505,0.28740587,695.88,694.48,0.28798525]
[1736602672704,1.33729544,695.87,694.48,0.28798525]
[1736602672905,0.26430701,695.86,694.48,0.28798525]
[1736602673507,1.33729544,695.86,694.48,0.28798525]
[1736602673708,0.26430701,695.85,694.48,0.28798525]
[1736602674406,1.07298843,695.82,694.48,0.28798525]
[1736602674602,0.26430701,695.81,694.48,0.28798525]
[1736602675307,1.07298843,695.8,694.48,0.28798525]
[1736602675501,0.26431071,695.79,694.48,0.28798525]
[1736602675701,1.07298843,695.8,694.48,0.28798525]
[1736602675902,1.07298843,695.78,694.48,0.28798525]
[1736602676702,0.28740587,695.88,694.48,0.28798525]
[1736602682406,1.07298843,695.81,694.48,0.28798525]
[1736602683205,1.07298843,695.65,694.48,0.28798525]
[1736602686514,1.07298843,695.66,694.48,0.28798525]
[1736602687414,0.28740587,695.88,694.48,0.28798525]
[1736602687415,1.07298843,695.71,694.48,0.28798525]
[1736602688216,1.07298843,695.7,694.48,0.28798525]
[1736602689215,1.07298843,695.69,694.48,0.28798525]
[1736602693120,1.07298843,695.67,694.48,0.28798525]
[1736602694915,1.07298843,695.68,694.48,0.28798525]
[1736602695715,1.07298843,695.62,694.48,0.28798525]
[1736602697618,1.07298843,695.63,694.48,0.28798525]
[1736602700720,1.07298843,695.62,694.48,0.28798525]
[1736602702123,1.07298843,695.61,694.48,0.28798525]
[1736602703125,1.07298843,695.62,694.48,0.28798525]
[1736602704023,1.07298843,695.55,694.48,0.28798525]
[1736602704625,1.07298843,695.54,694.48,0.28798525]
[1736602705924,1.07298843,695.55,694.48,0.28798525]
[1736602707822,1.07298843,695.57,694.48,0.28798525]
[1736602708628,1.07298843,695.58,694.48,0.28798525]
[1736602709928,1.07298843,695.64,694.48,0.28798525]
[1736602710729,0.28750503,695.64,694.48,0.28798525]
[1736602713732,1.07298843,695.63,694.48,0.28798525]
[1736602714632,0.28750503,695.64,694.48,0.28798525]
[1736602734552,1.07298843,695.81,694.48,0.28798525]
[1736602735253,1.07298843,695.99,694.48,0.28798525]
[1736602736753,1.07298843,696.0,694.48,0.28798525]
[1736602737054,0.26425639,695.99,694.48,0.28798525]
[1736602737854,1.07298843,695.93,694.48,0.28798525]
[1736602739657,1.07298843,695.94,694.48,0.28798525]
[1736602740652,0.26426022,695.93,694.48,0.28798525]
[1736602741258,1.07298843,695.97,694.48,0.28798525]
[1736602741455,0.26425933,695.96,694.48,0.28798525]
[1736602742952,1.07298843,695.95,694.48,0.28798525]
[1736602743257,0.26425933,695.94,694.48,0.28798525]
[1736602743649,0.26427671,695.93,694.48,0.28798525]
[1736602743852,1.07298843,695.95,694.48,0.28798525]
[1736602743853,0.26427671,695.92,694.48,0.28798525]
[1736602744050,0.26427671,695.91,694.48,0.28798525]
[1736602744250,0.26427671,695.9,694.48,0.28798525]
[1736602744456,0.26427671,695.89,694.48,0.28798525]
[1736602744753,0.26427671,695.88,694.48,0.28798525]
[1736602744956,0.26427671,695.87,694.48,0.28798525]
[1736602745152,0.26427671,695.86,694.48,0.28798525]
[1736602745354,1.07298843,695.93,694.48,0.28798525]
[1736602745555,0.26427492,695.92,694.48,0.28798525]
[1736602746254,1.07298843,695.93,694.48,0.28798525]
[1736602746454,0.2642749,695.92,694.48,0.28798525]
[1736602746656,0.2642749,695.91,694.48,0.28798525]
[1736602746857,0.2642749,695.9,694.48,0.28798525]
[1736602747053,0.26427375,695.89,694.48,0.28798525]
[1736602747258,0.26427375,695.88,694.48,0.28798525]
[1736602747459,1.07298843,695.91,694.48,0.28798525]
[1736602747659,0.26427293,695.9,694.48,0.28798525]
[1736602748256,1.33726136,695.9,694.48,0.28798525]
[1736602748456,0.26427293,695.89,694.48,0.28798525]
[1736602748659,1.07298843,695.9,694.48,0.28798525]
[1736602749864,1.07298843,696.0,694.48,0.28798525]
[1736602750964,1.07298843,695.98,694.48,0.28798525]
[1736602751865,1.07298843,696.05,694.48,0.28798525]
[1736602753163,1.07298843,696.06,694.48,0.28798525]
[1736602754064,1.07298843,696.0,694.48,0.28798525]
[1736602755165,1.07298843,695.94,694.48,0.28798525]
[1736602756270,1.07298843,696.06,694.48,0.28798525]
[1736602757271,1.07298843,696.05,694.48,0.28798525]
[1736602758272,1.07298843,696.06,694.48,0.28798525]
[1736602758967,1.07298843,696.09,694.48,0.28798525]
[1736602761476,1.07298843,696.08,694.48,0.28798525]
[1736602762568,1.07298843,696.1,694.48,0.28798525]
[1736602764277,0.26422312,696.09,694.48,0.28798525]
[1736602764476,1.07298843,696.05,694.48,0.28798525]
[1736602765076,1.07298843,696.02,694.48,0.28798525]
[1736602766076,1.07298843,696.01,694.48,0.28798525]
[1736602766973,1.07298843,696.22,694.48,0.28798525]
[1736602766974,1.07298843,696.0,694.48,0.28798525]
[1736602768181,1.07298843,696.11,694.48,0.28798525]
[1736602768773,1.07298843,696.1,694.48,0.28798525]
[1736602770479,1.07298843,696.09,694.48,0.28798525]
[1736602773889,0.26421833,696.08,694.48,0.28798525]
[1736602774389,0.28732742,696.07,694.48,0.28798525]
[1736602774588,0.26421833,696.06,694.48,0.28798525]
[1736602774785,1.07298843,695.87,694.48,0.28798525]
[1736602774990,0.26427429,695.86,694.48,0.28798525]
[1736602775588,1.07298843,695.77,694.48,0.28798525]
[1736602778787,0.88723912,696.04,694.48,0.28798525]
[1736602778788,1.07298843,695.78,694.48,0.28798525]
[1736602779893,1.07298843,695.8,694.48,0.28798525]
[1736602780691,1.07298843,695.82,694.48,0.28798525]
[1736602781587,1.07298843,695.83,694.48,0.28798525]
[1736602782591,1.07298843,695.85,694.48,0.28798525]
[1736602783192,0.28742239,695.84,694.48,0.28798525]
[1736602792194,0.26432369,695.83,694.48,0.28798525]
[1736602792399,0.55175021,695.83,694.48,0.28798525]
[1736602792596,0.28742652,695.83,694.48,0.28798525]
[1736602792793,0.26432359,695.82,694.48,0.28798525]
[1736602795301,0.2643229,695.81,694.48,0.28798525]
[1736602795604,0.2643229,695.8,694.48,0.28798525]
[1736602795903,0.2643229,695.79,694.48,0.28798525]
[1736602796098,0.2643229,695.78,694.48,0.28798525]
[1736602796403,0.2643229,695.77,694.48,0.28798525]
[1736602796604,0.2643229,695.76,694.48,0.28798525]
[1736602796802,0.2643229,695.75,694.48,0.28798525]
[1736602797004,1.36041495,695.83,694.48,0.28798525]
[1736602797304,0.26432742,695.82,694.48,0.28798525]
[1736602798604,1.33731585,695.82,694.48,0.28798525]
[1736602798801,0.26432742,695.81,694.48,0.28798525]
[1736602799698,0.26432742,695.8,694.48,0.28798525]
[1736602799898,0.26432742,695.79,694.48,0.28798525]